bitfinex/quotes_ETHUSD_20250827
["timestamp","ask_amount","ask_price","bid_price","bid_amount"]
[1756312997959,0.00200001,4631.8,4631.7,8.51986891]
[1756312998587,0.00200001,4631.8,4631.7,5.89683444]
[1756312998780,0.00200001,4631.8,4631.7,4.9682]
[1756312998979,0.00200001,4631.8,4631.7,7.12723447]
[1756312999684,0.00200001,4631.8,4631.7,6.83403447]
[1756312999882,0.00200001,4631.8,4631.7,4.675]
[1756313000085,0.00200001,4631.8,4631.7,0.2932]
[1756313000260,0.00200001,4631.8,4631.7,0.4012]
[1756313000593,0.00200001,4631.8,4631.7,3.35223447]
[1756313000794,0.00200001,4631.8,4631.7,1.95222345]
[1756313001014,0.00200001,4631.8,4631.7,1.1932]
[1756313001305,0.00200001,4631.8,4631.7,0.9]
[1756313002373,0.00200001,4631.8,4631.7,3.05903447]
[1756313002712,0.00200001,4631.8,4631.7,3.35223447]
[1756313003011,0.00200001,4631.8,4631.7,0.9]
[1756313003505,0.00200001,4631.8,4631.7,3.05903447]
[1756313003697,0.00200001,4631.8,4631.7,4.71544921]
[1756313004305,0.00200001,4631.8,4631.7,3.81623447]
[1756313005802,0.00200001,4631.8,4631.7,4.673]
[1756313006044,0.00200001,4631.8,4631.7,0.9]
[1756313006335,0.11100001,4631.8,4631.7,0.108]
[1756313006520,0.11100001,4631.8,4631.7,3.881]
[1756313006717,0.11100001,4631.8,4631.7,0.108]
[1756313007603,0.00200001,4631.8,4631.7,0.108]
[1756313007818,0.11420001,4631.8,4631.7,0.108]
[1756313008823,0.00200001,4631.8,4631.7,0.108]
[1756313009030,0.11420001,4631.8,4631.7,0.108]
[1756313009429,2.1591205,4631.6,4630.8,2.15940868]
[1756313009631,2.15913859,4631.5,4631.0,0.108]
[1756313009846,0.1153,4631.1,4631.0,0.108]
[1756313010048,0.1153,4631.1,4630.6,0.001]
[1756313010343,2.15936082,4631.0,4630.6,0.001]
[1756313010526,2.15940762,4630.9,4630.6,0.001]
[1756313010733,0.3093,4630.7,4630.6,0.001]
[1756313011321,2.46880072,4630.7,4630.6,0.001]
[1756313011708,0.3093,4630.7,4630.6,0.001]
[1756313012034,2.46880072,4630.7,4630.6,0.001]
[1756313012237,0.3093,4630.7,4630.6,0.001]
[1756313013626,2.15944977,4630.9,4630.6,0.001]
[1756313013826,0.53697915,4630.8,4630.6,0.001]
[1756313014029,0.33807315,4630.8,4630.6,0.001]
[1756313014229,0.109,4630.7,4630.6,0.001]
[1756313014938,0.44607315,4630.8,4630.6,0.001]
[1756313015325,2.60553097,4630.8,4630.6,0.001]
[1756313015562,0.44607315,4630.8,4630.6,0.001]
[1756313015727,2.60552824,4630.8,4630.6,0.001]
[1756313016462,2.27170072,4630.7,4630.6,0.001]
[1756313017060,2.7594196,4630.7,4630.6,0.001]
[1756313017449,3.1836196,4630.7,4630.6,0.001]
[1756313020246,5.7594196,4630.7,4630.6,0.001]
[1756313020482,6.72224318,4630.7,4630.6,0.001]
[1756313021074,13.78224318,4630.7,4630.6,0.001]
[1756313022866,13.89145602,4630.7,4630.6,0.001]
[1756313023568,13.78224318,4630.7,4630.6,0.001]
[1756313023769,13.55324318,4630.7,4630.6,0.001]
[1756313023970,17.01294318,4630.7,4630.6,0.001]
[1756313024267,16.98414501,4630.7,4630.6,0.001]
[1756313027438,17.21214501,4630.7,4630.6,0.001]
[1756313027809,16.98314501,4630.7,4630.6,0.001]
[1756313027968,17.21214501,4630.7,4630.6,0.001]
[1756313028167,13.44414501,4630.7,4630.6,0.001]
[1756313028507,17.550275,4630.7,4630.6,0.001]
[1756313029372,21.34829188,4630.2,4630.1,1e-08]
[1756313029710,27.42056481,4630.2,4630.1,1e-08]
[1756313029909,27.7602394,4630.2,4630.1,1e-08]
[1756313030092,28.29661755,4630.2,4630.1,1e-08]
[1756313030273,28.38324455,4630.2,4630.1,1e-08]
[1756313030997,2.15987386,4629.9,4629.8,1e-08]
[1756313031250,9.12505122,4629.9,4629.8,1e-08]
[1756313031410,9.66335122,4629.9,4629.8,1e-08]
[1756313031951,9.74998222,4629.9,4629.8,1e-08]
[1756313033429,9.74988459,4629.9,4629.8,1e-08]
[1756313033610,10.19553211,4629.9,4629.8,1e-08]
[1756313034443,5.89023211,4629.9,4629.8,1e-08]
[1756313034622,8.92587386,4629.9,4629.8,0.76570001]
[1756313035544,2.15987386,4629.9,4629.8,0.76570001]
[1756313037342,5.92583811,4630.0,4629.8,0.76570001]
[1756313037551,3.766,4630.0,4629.8,0.76570001]
[1756313037746,5.92582721,4630.0,4629.9,0.4702]
[1756313037948,5.92582721,4630.0,4629.9,0.7657]
[1756313038244,2.15982721,4630.0,4629.9,0.7657]
[1756313038945,3.766,4630.1,4629.9,0.7657]
[1756313039150,5.92579103,4630.1,4629.9,0.7657]
[1756313039443,0.108,4630.0,4629.9,0.2955]
[1756313039749,2.26782721,4630.0,4629.9,0.2955]
[1756313039954,2.26782721,4630.0,4629.9,0.7657]
[1756313040148,0.108,4630.0,4629.9,0.7657]
[1756313040348,2.15987386,4629.9,4629.8,1e-08]
[1756313040648,5.92487386,4629.9,4629.8,1e-08]
[1756313040813,5.92487386,4629.9,4629.8,0.29550001]
[1756313041213,5.92487386,4629.9,4629.8,0.76570001]
[1756313042046,5.92487386,4629.9,4629.8,0.29550001]
[1756313042478,2.15987386,4629.9,4629.8,0.29550001]
[1756313042629,2.15987386,4629.9,4629.8,0.29650001]
[1756313043151,3.873,4630.0,4629.8,0.76670001]
[1756313043655,6.03283784,4630.0,4629.8,0.29650001]
[1756313043856,6.03283784,4630.0,4629.9,0.4702]
[1756313044059,6.03283784,4630.0,4629.9,0.7657]
[1756313044272,0.30693731,4630.0,4629.9,0.7657]
[1756313044555,3.872,4630.0,4629.9,0.7657]
[1756313044922,0.108,4630.0,4629.9,0.7657]
[1756313045365,0.33814109,4630.1,4629.9,0.7657]
[1756313045655,2.15924107,4631.3,4630.0,0.92337]
[1756313045855,2.15924107,4631.3,4631.2,0.2955]
[1756313046157,2.71999212,4631.8,4631.2,0.2955]
[1756313046368,2.15909118,4631.6,4631.2,0.7657]
[1756313046661,2.35815764,4631.5,4631.2,0.7657]
[1756313046967,2.71999037,4631.8,4631.3,0.4702]
[1756313046968,3.763,4631.7,4631.3,0.4702]
[1756313047481,0.00200001,4631.8,4631.6,0.2955]
[1756313047869,2.15917042,4631.5,4630.9,0.4702]
[1756313048467,3.762,4631.7,4631.4,0.2955]
[1756313048650,5.92104672,4631.7,4631.4,0.7657]
[1756313048961,5.92104672,4631.7,4631.5,0.4702]
[1756313048962,0.33802116,4631.7,4631.5,0.4702]
[1756313049127,0.00200001,4631.8,4631.6,0.2955]
[1756313049560,0.00200001,4631.8,4631.7,0.4702]
[1756313049933,0.00200001,4631.8,4631.7,0.7657]
[1756313050334,0.00200001,4631.8,4631.7,2.92473447]
[1756313052358,0.00200001,4631.8,4631.7,4.22512455]
[1756313052667,0.00200001,4631.8,4631.7,4.24671489]
[1756313052834,0.00200001,4631.8,4631.7,4.22512455]
[1756313053033,0.00200001,4631.8,4631.7,7.98612455]
[1756313053540,0.00200001,4631.8,4631.7,4.22512455]
[1756313053744,0.00200001,4631.8,4631.7,7.98512455]
[1756313054349,0.00200001,4631.8,4631.7,4.22512455]
[1756313054552,0.00200001,4631.8,4631.7,7.98512455]
[1756313055442,0.00200001,4631.8,4631.7,8.09312455]
[1756313056174,0.00200001,4631.8,4631.7,4.33312455]
[1756313056550,0.00200001,4631.8,4631.7,8.09212455]
[1756313056739,0.00200001,4631.8,4631.7,4.33312455]
[1756313056941,0.00200001,4631.8,4631.7,8.09212455]
[1756313057539,0.00200001,4631.8,4631.7,4.33312455]
[1756313057877,0.00200001,4631.8,4631.7,7.58373447]
[1756313060767,0.00200001,4631.8,4631.7,3.82473447]
[1756313061067,0.00200001,4631.8,4631.7,7.58273447]
[1756313061446,0.00200001,4631.8,4631.7,3.82473447]
[1756313061646,0.00200001,4631.8,4631.7,7.58173447]
[1756313061844,0.00200001,4631.8,4631.7,8.7219206]
[1756313062045,0.00200001,4631.8,4631.7,4.9649206]
[1756313062248,0.00200001,4631.8,4631.7,8.7219206]
[1756313063051,0.00200001,4631.8,4631.7,11.7219206]
[1756313063989,1e-08,4631.8,4631.7,11.7219206]
[1756313064171,1e-08,4631.8,4631.7,11.7209206]
[1756313064484,1e-08,4631.8,4631.7,7.9649206]
[1756313064688,1e-08,4631.8,4631.7,11.7209206]
[1756313064856,1e-08,4631.8,4631.7,7.9649206]
[1756313065060,1e-08,4631.8,4631.7,11.7209206]
[1756313066163,1e-08,4631.8,4631.7,7.9649206]
[1756313066366,1e-08,4631.8,4631.7,11.7209206]
[1756313068567,1e-08,4631.8,4631.7,7.9649206]
[1756313068789,1e-08,4631.8,4631.7,11.7199206]
[1756313069983,1e-08,4631.8,4631.7,11.2497206]
[1756313070183,1e-08,4631.8,4631.7,11.6920206]
[1756313071794,1e-08,4631.8,4631.7,11.6910206]
[1756313073411,1e-08,4631.8,4631.7,7.9370206]
[1756313073812,1e-08,4631.8,4631.7,11.6900206]
[1756313077234,1e-08,4631.8,4631.7,11.6890206]
[1756313078237,1e-08,4631.8,4631.7,11.7755606]
[1756313080710,1e-08,4631.8,4631.7,11.7745606]
[1756313080911,1e-08,4631.8,4631.7,8.0235606]
[1756313081247,1e-08,4631.8,4631.7,11.7745606]
[1756313082511,1e-08,4631.8,4631.7,8.0235606]
[1756313082754,1e-08,4631.8,4631.7,11.7735606]
[1756313083501,0.30750001,4631.8,4631.7,5.35357447]
[1756313083829,0.53840001,4631.8,4631.7,6.01703447]
[1756313084044,0.53840001,4631.8,4631.7,3.858]
[1756313084552,0.30750001,4631.8,4631.7,3.858]
[1756313084711,0.53840001,4631.8,4631.7,3.858]
[1756313084911,0.53840001,4631.8,4631.7,4.65]
[1756313085512,0.53840001,4631.8,4631.7,6.80903447]
[1756313085712,0.30750001,4631.8,4631.7,3.05903447]
[1756313085939,0.30750001,4631.8,4631.7,4.65]
[1756313086242,0.53840001,4631.8,4631.7,4.65]
[1756313086651,0.53840001,4631.8,4631.7,3.858]
[1756313088125,0.30750001,4631.8,4631.7,3.858]
[1756313089938,0.53840001,4631.8,4631.7,0.108]
[1756313090124,0.53840001,4631.8,4631.7,3.857]
[1756313090533,0.30750001,4631.8,4631.6,0.001]
[1756313090738,0.30750001,4631.8,4631.7,3.749]
[1756313093341,0.53840001,4631.8,4631.7,3.749]
[1756313093643,0.80812493,4631.8,4631.7,3.749]
[1756313094152,0.80812493,4631.8,4631.6,0.001]
[1756313094324,0.57722493,4631.8,4631.7,3.748]
[1756313094738,0.30750001,4631.8,4631.7,3.748]
[1756313095071,0.53840001,4631.8,4631.6,0.001]
[1756313095254,0.53840001,4631.8,4631.7,3.748]
[1756313095934,0.30750001,4631.8,4631.7,3.748]
[1756313096709,0.30750001,4631.8,4631.6,0.001]
[1756313096915,0.30750001,4631.8,4631.7,3.747]
[1756313097137,0.30750001,4631.8,4631.6,0.001]
[1756313097338,0.53840001,4631.8,4631.6,0.001]
[1756313097538,0.30750001,4631.8,4631.6,0.001]
[1756313097855,2.38993447,4631.7,4631.6,0.001]
[1756313098035,2.88637227,4631.7,4631.6,0.001]
[1756313098351,3.38561236,4631.7,4631.6,0.001]
[1756313100026,6.38561236,4631.7,4631.6,0.001]
[1756313100464,10.13161236,4631.7,4631.6,0.001]
[1756313100776,26.5742938,4631.7,4631.6,1e-08]
[1756313100941,26.57400993,4631.7,4631.6,1e-08]
[1756313101464,2.15922095,4631.3,4631.2,1e-08]
[1756313101636,7.12697717,4631.3,4631.2,1e-08]
[1756313101827,7.66527717,4631.3,4631.2,1e-08]
[1756313102269,7.75189317,4631.3,4631.2,1e-08]
[1756313103880,2.15945409,4630.8,4630.7,1e-08]
[1756313104167,25.54785185,4630.8,4630.7,1e-08]
[1756313104472,2.15987386,4629.9,4629.8,0.00100001]
[1756313104678,10.76512474,4629.9,4629.8,0.00100001]
[1756313104831,2.15996716,4629.7,4629.6,1e-08]
[1756313105169,5.74671043,4629.7,4629.6,1e-08]
[1756313105463,6.28491043,4629.7,4629.6,1e-08]
[1756313106028,10.02991043,4629.7,4629.6,1e-08]
[1756313107455,9.83165955,4629.7,4629.6,1e-08]
[1756313109379,9.91830455,4629.7,4629.6,1e-08]
[1756313110986,6.1636411,4629.7,4629.6,1e-08]
[1756313111167,9.6103411,4629.7,4629.6,1e-08]
[1756313111371,9.6316961,4629.7,4629.6,1e-08]
[1756313111781,5.8866961,4629.7,4629.6,1e-08]
[1756313111947,9.7482961,4629.7,4629.6,1e-08]
[1756313112148,10.1680961,4629.7,4629.6,1e-08]
[1756313112767,10.2547321,4629.7,4629.6,1e-08]
[1756313114298,9.8339321,4629.7,4629.6,1e-08]
[1756313114902,9.6306961,4629.7,4629.6,0.29050001]
[1756313115112,5.8866961,4629.7,4629.6,0.29050001]
[1756313115269,9.6306961,4629.7,4629.6,0.74490001]
[1756313115595,9.6306961,4629.7,4629.6,1e-08]
[1756313115798,9.7409961,4629.7,4629.6,1e-08]
[1756313116000,9.82875955,4629.7,4629.6,1e-08]
[1756313116197,16.46275955,4629.7,4629.6,1e-08]
[1756313116503,12.60845955,4629.7,4629.6,1e-08]
[1756313116668,16.35245955,4629.7,4629.6,1e-08]
[1756313117564,16.52239355,4629.7,4629.6,1e-08]
[1756313117793,16.97519355,4629.7,4629.6,1e-08]
[1756313118292,12.69509355,4629.7,4629.6,1e-08]
[1756313118497,16.43909355,4629.7,4629.6,1e-08]
[1756313118797,16.52239355,4629.7,4629.6,1e-08]
[1756313119005,16.86060989,4629.7,4629.6,1e-08]
[1756313119605,16.77730989,4629.7,4629.6,1e-08]
[1756313120109,16.77730989,4629.7,4629.6,0.72740001]
[1756313120293,16.77730989,4629.7,4629.6,0.29550001]
[1756313120494,13.4091835,4629.7,4629.6,0.72740001]
[1756313121617,13.4091835,4629.7,4629.6,0.29550001]
[1756313121808,13.4091835,4629.7,4629.6,0.72740001]
[1756313122290,13.4091835,4629.7,4629.6,1e-08]
[1756313122482,13.4924835,4629.7,4629.6,1e-08]
[1756313122682,14.12660449,4629.7,4629.6,0.29550001]
[1756313122981,9.6661835,4629.7,4629.6,0.72740001]
[1756313123192,2.6061835,4629.7,4629.6,0.72740001]
[1756313123391,0.44621634,4629.7,4629.6,0.72740001]
[1756313123597,0.33821634,4629.7,4629.6,0.72740001]
[1756313123789,0.108,4629.9,4629.6,0.72740001]
[1756313124003,0.44614842,4629.9,4629.7,0.4319]
[1756313124205,0.33814842,4629.9,4629.8,0.2955]
[1756313124598,0.33814842,4629.9,4629.8,0.7274]
[1756313124996,2.49802228,4629.9,4629.8,0.7274]
[1756313125418,6.24002228,4629.9,4629.8,0.7274]
[1756313126019,4.08014842,4629.9,4629.8,0.7274]
[1756313126224,0.33814842,4629.9,4629.8,0.7274]
[1756313126412,0.108,4630.1,4629.8,0.7274]
[1756313126611,0.108,4630.1,4629.9,0.4319]
[1756313126811,0.44612663,4630.4,4629.9,0.4319]
[1756313127022,6.23977999,4630.4,4630.3,0.2955]
[1756313127204,2.49777999,4630.4,4630.3,0.7274]
[1756313127531,2.49777999,4630.4,4630.3,0.8354]
[1756313127532,0.33812663,4630.4,4630.3,0.8354]
[1756313127894,3.849,4630.9,4630.3,0.8354]
[1756313128095,3.849,4630.9,4630.3,2.9950454]
[1756313128300,0.108,4630.9,4630.4,0.4319]
[1756313128500,0.108,4630.9,4630.8,0.2955]
[1756313128802,0.108,4630.9,4630.8,0.7274]
[1756313128998,2.26740745,4630.9,4630.8,0.7274]
[1756313129202,2.15940745,4630.9,4630.8,0.7274]
[1756313129827,2.16140745,4630.9,4630.8,0.7274]
[1756313130021,5.90240745,4630.9,4630.8,0.2955]
[1756313130229,2.15978544,4630.1,4629.6,1e-08]
[1756313130425,2.26778544,4630.1,4630.0,0.4319]
[1756313130614,0.108,4630.1,4630.0,0.7274]
[1756313131737,2.26778056,4630.1,4630.0,0.7274]
[1756313132931,2.26778056,4630.1,4630.0,0.2955]
[1756313133233,2.26778056,4630.1,4629.6,1e-08]
[1756313133234,2.15996716,4629.7,4629.6,1e-08]
[1756313133399,6.00696716,4629.7,4629.6,1e-08]
[1756313133599,6.09396716,4629.7,4629.6,1e-08]
[1756313134205,2.46699851,4629.7,4629.6,1e-08]
[1756313134396,6.20599851,4629.7,4629.6,1e-08]
[1756313134596,6.42213926,4629.7,4629.6,1e-08]
[1756313135533,6.50543926,4629.7,4629.6,1e-08]
[1756313137435,6.95823926,4629.7,4629.6,1e-08]
[1756313138034,9.95823926,4629.7,4629.6,1e-08]
[1756313138946,10.29645771,4629.7,4629.6,1e-08]
[1756313141037,10.09742636,4629.7,4629.6,1e-08]
[1756313141203,10.29644743,4629.7,4629.6,1e-08]
[1756313142417,9.84364743,4629.7,4629.6,1e-08]
[1756313142619,17.35644743,4629.7,4629.6,1e-08]
[1756313142825,2.16010714,4629.4,4629.3,0.001]
[1756313143026,11.47535386,4629.4,4629.3,0.001]
[1756313143314,12.11955386,4629.4,4629.3,1e-08]
[1756313143510,5.1601538,4629.3,4629.2,1e-08]
[1756313143747,5.35917487,4629.3,4629.2,1e-08]
[1756313143959,2.16020046,4629.2,4629.1,1e-08]
[1756313144160,6.55016228,4629.2,4629.1,1e-08]
[1756313144340,2.16034046,4628.9,4628.8,0.021]
[1756313144540,9.09636153,4628.9,4628.8,0.021]
[1756313144854,9.72121853,4628.9,4628.8,0.021]
[1756313145461,9.72121853,4628.9,4628.8,1e-08]
[1756313145644,10.43844418,4628.9,4628.8,1e-08]
[1756313146162,10.19944418,4628.9,4628.8,1e-08]
[1756313146463,6.16324418,4628.9,4628.8,0.29290001]
[1756313146649,9.20436153,4628.9,4628.8,0.72820001]
[1756313147731,9.20436153,4628.9,4628.8,0.29290001]
[1756313147952,9.20436153,4628.9,4628.8,1e-08]
[1756313147953,9.28336153,4628.9,4628.8,1e-08]
[1756313148472,9.82701853,4628.9,4628.8,1e-08]
[1756313149458,10.16531319,4628.9,4628.8,1e-08]
[1756313150038,10.16531319,4628.9,4628.6,1e-08]
[1756313150039,5.16038714,4628.8,4628.6,1e-08]
[1756313150232,9.09645488,4628.7,4628.6,1e-08]
[1756313150462,9.38355488,4628.7,4628.6,1e-08]
[1756313151168,9.43553381,4628.7,4628.6,1e-08]
[1756313151366,9.63434843,4628.7,4628.6,1e-08]
[1756313151567,2.16066721,4628.2,4628.1,1e-08]
[1756313151869,7.86548183,4628.2,4628.1,1e-08]
[1756313152168,8.15218183,4628.2,4628.1,1e-08]
[1756313152369,8.49051127,4628.2,4628.1,1e-08]
[1756313153733,8.92581127,4628.2,4628.1,1e-08]
[1756313153940,9.03689898,4628.2,4628.1,1e-08]
[1756313154165,15.98581127,4628.2,4628.1,1e-08]
[1756313154844,15.9854496,4628.2,4628.1,1e-08]
[1756313155267,7.39832944,4628.2,4628.1,0.72820001]
[1756313155573,3.735,4628.6,4628.1,0.72820001]
[1756313155757,3.735,4628.6,4628.2,0.4353]
[1756313155957,3.735,4628.6,4628.5,0.2929]
[1756313156139,3.735,4628.6,4628.5,0.7282]
[1756313157770,5.89548049,4628.6,4628.5,0.7282]
[1756313158549,2.16022,4629.2,4628.5,0.7282]
[1756313158777,3.734,4629.1,4628.6,0.4353]
[1756313158934,5.89426526,4629.1,4628.6,0.4353]
[1756313159143,5.89424713,4629.1,4629.0,0.2929]
[1756313159338,5.89424713,4629.1,4629.0,0.7282]
[1756313159557,6.23246869,4629.1,4629.0,0.7282]
[1756313159879,6.23246869,4629.1,4629.0,0.2929]
[1756313160182,6.23246869,4629.1,4629.0,0.7282]
[1756313160339,2.49846869,4629.1,4629.0,0.7282]
[1756313160536,2.16048049,4628.6,4628.5,0.4353]
[1756313160858,5.89448049,4628.6,4628.5,0.7282]
[1756313161061,2.16066721,4628.2,4628.1,1e-08]
[1756313161265,5.89466721,4628.2,4628.1,1e-08]
[1756313161939,9.09356462,4628.2,4628.1,1e-08]
[1756313162281,9.6400663,4628.2,4628.1,1e-08]
[1756313162660,5.8270663,4628.2,4628.1,1e-08]
[1756313162974,9.5600663,4628.2,4628.1,1e-08]
[1756313163180,0.19889741,4628.2,4628.1,0.72820001]
[1756313163471,3.733,4628.2,4628.1,0.72820001]
[1756313163971,5.89366721,4628.2,4628.1,0.72820001]
[1756313165540,3.733,4628.2,4628.1,0.72820001]
[1756313165742,3.841,4628.2,4628.1,0.72820001]
[1756313166446,0.30711119,4628.2,4628.1,0.72820001]
[1756313166653,3.733,4628.2,4628.1,0.72820001]
[1756313167384,3.841,4628.2,4628.1,0.72820001]
[1756313168782,0.108,4628.2,4628.1,0.72820001]
[1756313169084,3.84,4628.2,4628.1,0.72820001]
[1756313169283,6.00066721,4628.2,4628.1,0.72820001]
[1756313169482,6.00066721,4628.2,4628.1,0.29290001]
[1756313169483,6.19977738,4628.2,4628.1,0.29290001]
[1756313169646,6.19977738,4628.2,4628.1,1e-08]
[1756313170782,6.19980872,4628.2,4628.1,0.29290001]
[1756313171286,6.19980872,4628.2,4628.1,1e-08]
[1756313171691,4.03914151,4628.2,4628.1,0.72820001]
[1756313171995,6.73347002,4628.2,4628.1,1e-08]
[1756313172163,9.93271349,4628.2,4628.1,1e-08]
[1756313172365,6.20071349,4628.2,4628.1,1e-08]
[1756313172554,9.93171349,4628.2,4628.1,1e-08]
[1756313172755,3.12171349,4628.2,4628.1,0.29290001]
[1756313172988,6.19891068,4628.2,4628.1,0.72820001]
[1756313173194,0.30724347,4628.2,4628.1,0.72820001]
[1756313174592,2.46791068,4628.2,4628.1,0.72820001]
[1756313174957,0.30724347,4628.2,4628.1,0.72820001]
[1756313175768,0.108,4628.2,4628.1,0.72820001]
[1756313176075,0.108,4628.4,4628.1,0.72820001]
[1756313176270,0.108,4628.4,4628.2,0.4353]
[1756313176486,2.26857424,4628.4,4628.2,0.4353]
[1756313176800,2.26857424,4628.4,4628.3,0.7475]
[1756313176969,0.108,4628.4,4628.3,0.7475]
[1756313177355,0.108,4628.4,4628.3,3.70012053]
[1756313177555,0.108,4628.4,4628.3,4.45240189]
[1756313177795,0.002,4629.4,4628.4,2.95257384]
[1756313177971,0.002,4629.4,4629.3,2.1601538]
[1756313178171,0.002,4629.4,4629.3,2.5825538]
[1756313178371,0.002,4629.4,4629.3,3.0156538]
[1756313178599,0.002,4629.4,4629.3,3.53324303]
[1756313178900,0.002,4629.4,4629.3,4.32524303]
[1756313180192,0.002,4629.4,4629.3,1.37308923]
[1756313180396,0.002,4629.4,4629.3,3.42524303]
[1756313181991,0.002,4629.4,4629.3,4.21724303]
[1756313183478,0.002,4629.4,4629.3,0.83198923]
[1756313183793,2.1601538,4629.3,4628.4,0.4331]
[1756313184090,2.16034668,4628.9,4628.2,1.662]
[1756313184411,2.16045469,4628.7,4628.2,1.662]
[1756313184913,2.16039971,4628.8,4628.2,2.57631]
[1756313185088,0.4685,4629.3,4628.2,2.57631]
[1756313185089,2.16043442,4628.7,4628.2,2.57631]
[1756313185413,2.16052304,4628.6,4627.8,5.90884429]
[1756313185712,2.16043258,4628.8,4628.0,0.4331]
[1756313185893,2.16062053,4628.3,4627.8,0.02]
[1756313186296,2.1605741,4628.4,4627.8,0.02]
[1756313186490,1.662,4629.1,4627.8,0.02]
[1756313186491,2.16066721,4628.2,4627.8,0.02]
[1756313187015,2.34106721,4628.2,4627.8,0.02]
[1756313187402,2.16062734,4628.3,4627.8,0.02]
[1756313187794,2.16066721,4628.2,4627.8,0.02]
[1756313187979,3.728,4628.7,4627.8,0.02]
[1756313188487,2.16058737,4628.4,4627.8,0.02]
[1756313188713,2.16062558,4628.3,4627.8,0.02]
[1756313188911,2.16043381,4628.7,4627.8,0.02]
[1756313189100,2.16066186,4628.3,4627.8,0.02]
[1756313189522,2.16065604,4628.3,4627.8,0.02]
[1756313189689,2.16052997,4628.5,4627.8,0.02]
[1756313189690,2.16056854,4628.5,4627.8,0.02]
[1756313190183,0.108,4628.2,4627.8,0.02]
[1756313190383,0.33826218,4628.6,4627.9,0.792]
[1756313190706,0.108,4628.7,4628.4,0.3144]
[1756313191017,0.108,4629.0,4628.5,0.4331]
[1756313191521,2.16034771,4628.9,4628.5,0.4331]
[1756313191719,2.16034206,4628.9,4628.5,0.4331]
[1756313192301,2.26830411,4629.0,4628.5,0.4331]
[1756313192499,2.16034923,4628.9,4628.5,0.4331]
[1756313192698,2.16038736,4628.8,4628.5,0.4331]
[1756313193198,2.16034612,4628.9,4628.5,0.4331]
[1756313193821,2.26829784,4629.0,4628.5,0.4331]
[1756313194122,2.16034472,4628.9,4628.6,0.4331]
[1756313194324,2.16039993,4628.8,4628.6,0.4331]
[1756313194688,2.16034738,4628.9,4628.7,0.3144]
[1756313195516,0.108,4629.0,4628.7,0.3144]
[1756313195824,0.108,4629.0,4628.7,0.7475]
[1756313196025,2.16034206,4628.9,4628.7,0.7475]
[1756313196320,0.108,4629.0,4628.7,0.7475]
[1756313196534,0.33821128,4629.2,4628.8,0.4331]
[1756313196821,2.16052716,4628.5,4628.4,0.108]
[1756313197021,2.16052716,4628.5,4628.1,1e-08]
[1756313197022,0.2912,4628.5,4628.1,1e-08]
[1756313197388,2.26866721,4628.2,4628.1,1e-08]
[1756313197805,2.45466721,4628.2,4628.1,1e-08]
[1756313200634,0.108,4628.2,4628.1,1e-08]
[1756313201719,0.108,4628.2,4628.1,0.74750001]
[1756313201904,0.108,4628.2,4628.1,3.20113609]
[1756313202308,7.06,4628.4,4628.2,0.792]
[1756313202499,7.06,4628.4,4628.3,2.95262053]
[1756313202826,7.06,4628.4,4628.3,3.70012053]
[1756313203026,0.34023513,4629.2,4628.4,0.792]
[1756313203326,0.34023513,4629.2,4628.3,0.7475]
[1756313203327,0.002,4629.2,4629.1,0.3144]
[1756313203651,0.002,4629.2,4629.1,2.90774713]
[1756313204308,0.002,4629.2,4629.1,0.7475]
[1756313205397,0.002,4629.2,4629.1,2.90774713]
[1756313205691,0.002,4629.2,4629.1,1.26510983]
[1756313205895,0.002,4629.2,4629.1,3.42535696]
[1756313207045,0.002,4629.2,4629.1,4.21735696]
[1756313207217,0.002,4629.2,4629.1,4.32535696]
[1756313210817,0.002,4629.2,4629.1,0.94000983]
[1756313211007,0.002,4629.2,4629.1,3.831]
[1756313211543,2.16220046,4629.2,4629.1,0.108]
[1756313211746,0.002,4629.2,4628.7,0.108]
[1756313211917,2.16043235,4628.8,4628.3,0.22]
[1756313212826,0.108,4628.9,4628.3,0.22]
[1756313213135,2.26834146,4628.9,4628.3,0.22]
[1756313213915,0.108,4628.9,4628.3,0.22]
[1756313214231,2.26834098,4628.9,4628.3,0.22]
[1756313214541,2.16038714,4628.8,4628.3,0.108]
[1756313214746,0.44286815,4628.8,4628.1,1e-08]
[1756313215046,0.108,4628.3,4628.1,1e-08]
[1756313215707,2.16066721,4628.2,4628.1,1e-08]
[1756313216845,2.35964594,4628.2,4628.1,1e-08]
[1756313217033,2.62349353,4628.2,4628.1,1e-08]
[1756313217546,0.108,4628.3,4628.1,1e-08]
[1756313218525,2.26862426,4628.3,4628.1,1e-08]
[1756313218728,0.108,4628.3,4628.1,1e-08]
[1756313219554,2.26862705,4628.3,4628.1,1e-08]
[1756313219757,0.108,4628.3,4628.1,1e-08]
[1756313220420,0.108,4628.3,4628.1,2.16067972]
[1756313220723,0.33826035,4628.6,4628.3,2.16057851]
[1756313220944,0.11,4628.9,4628.5,2.16052564]
[1756313221449,0.11,4628.9,4628.4,2.18217394]
[1756313221650,0.11,4628.9,4628.3,2.16059877]
[1756313221818,0.11,4628.9,4628.7,0.108]
[1756313221819,0.002,4628.9,4628.7,0.108]
[1756313222156,0.002,4628.9,4628.8,2.97399101]
[1756313222350,0.002,4628.9,4628.8,3.06038714]
[1756313223121,0.002,4628.9,4628.8,6.06038714]
[1756313223925,0.002,4628.9,4628.8,9.78138714]
[1756313225329,0.002,4628.9,4628.8,9.78038714]
[1756313225651,0.002,4628.9,4628.8,7.30068383]
[1756313225828,0.002,4628.9,4628.8,11.02068383]
[1756313228442,0.002,4628.9,4628.8,7.30068383]
[1756313228763,0.002,4628.9,4628.8,11.02068383]
[1756313229667,0.002,4628.9,4628.8,11.01968383]
[1756313231233,1e-08,4628.9,4628.8,8.16968383]
[1756313231468,1e-08,4628.9,4628.8,5.06168383]
[1756313231638,1e-08,4628.9,4628.8,7.54038714]
[1756313232040,1e-08,4628.9,4628.8,5.38]
[1756313232241,1e-08,4628.9,4628.8,6.172]